bitfinex/quotes_BTCUSD_20250928
["timestamp","ask_amount","ask_price","bid_price","bid_amount"]
[1759063472643,4.719085,109560.0,109550.0,0.04089605]
[1759063473088,5.121085,109560.0,109550.0,0.04089605]
[1759063473302,4.719085,109560.0,109550.0,0.04089605]
[1759063473510,5.14856857,109560.0,109550.0,0.04089605]
[1759063473719,5.0602971,109560.0,109550.0,0.04089605]
[1759063473938,4.9660971,109560.0,109550.0,0.04089605]
[1759063474180,5.0612571,109560.0,109550.0,0.04089605]
[1759063474593,4.6578571,109560.0,109550.0,0.04089605]
[1759063474799,4.74656857,109560.0,109550.0,0.04089605]
[1759063475231,5.05552857,109560.0,109550.0,0.04089605]
[1759063475479,5.15068857,109560.0,109550.0,0.04089605]
[1759063476096,5.05564857,109560.0,109550.0,0.04089605]
[1759063476298,5.15080857,109560.0,109550.0,0.04089605]
[1759063477747,5.13648352,109560.0,109550.0,0.04089605]
[1759063478386,5.04100352,109560.0,109550.0,0.04089605]
[1759063478606,5.13616352,109560.0,109550.0,0.04089605]
[1759063478822,4.73324352,109560.0,109550.0,0.04089605]
[1759063479050,5.04100352,109560.0,109550.0,0.04089605]
[1759063479290,5.13616352,109560.0,109550.0,0.04089605]
[1759063479497,5.13620352,109560.0,109550.0,0.04089605]
[1759063480143,5.16635542,109560.0,109550.0,0.04089605]
[1759063480416,4.76339542,109560.0,109550.0,0.04089605]
[1759063480634,5.07748395,109560.0,109550.0,0.04089605]
[1759063480847,5.09180858,109560.0,109550.0,0.04089605]
[1759063483553,4.65885668,109560.0,109550.0,0.04089605]
[1759063483781,5.09160858,109560.0,109550.0,0.04089605]
[1759063483998,5.18032005,109560.0,109550.0,0.04089605]
[1759063484846,5.18245005,109560.0,109550.0,0.04089605]
[1759063485512,4.77772005,109560.0,109550.0,0.04089605]
[1759063485724,4.41401668,109560.0,109550.0,0.04494244]
[1759063485940,4.72105668,109560.0,109550.0,0.04494244]
[1759063486154,5.06105668,109560.0,109550.0,0.04494244]
[1759063486583,4.72105668,109560.0,109550.0,0.04494244]
[1759063486807,5.14976815,109560.0,109550.0,0.04494244]
[1759063487021,5.14876815,109560.0,109550.0,0.04494244]
[1759063487232,5.05344815,109560.0,109550.0,0.04494244]
[1759063487444,5.05344815,109560.0,109550.0,0.04794244]
[1759063487678,5.03912352,109560.0,109550.0,0.04794244]
[1759063488388,5.03612352,109560.0,109550.0,0.04794244]
[1759063489069,5.03612352,109560.0,109550.0,0.05094244]
[1759063489552,5.03596352,109560.0,109550.0,0.05094244]
[1759063489795,4.45798368,109560.0,109550.0,0.05094244]
[1759063490005,4.91968848,109560.0,109550.0,0.05094244]
[1759063490610,4.93401156,109560.0,109550.0,0.05094244]
[1759063491956,4.96148694,109560.0,109550.0,0.05094244]
[1759063492152,5.05019841,109560.0,109550.0,0.05094244]
[1759063493473,5.05003841,109560.0,109550.0,0.05094244]
[1759063495123,4.96132694,109560.0,109550.0,0.05094244]
[1759063495342,4.65484694,109560.0,109550.0,0.05094244]
[1759063495547,4.93349156,109560.0,109550.0,0.05094244]
[1759063495752,4.96088662,109560.0,109550.0,0.05094244]
[1759063495959,4.65484662,109560.0,109550.0,0.05094244]
[1759063496173,5.04951809,109560.0,109550.0,0.05094244]
[1759063497210,4.96060662,109560.0,109550.0,0.05094244]
[1759063497417,4.91880848,109560.0,109550.0,0.05094244]
[1759063497761,4.61304848,109560.0,109550.0,0.05094244]
[1759063497961,4.91880848,109560.0,109550.0,0.05094244]
[1759063499921,4.91868848,109560.0,109550.0,0.05094244]
[1759063500378,4.43050011,109560.0,109550.0,0.05094244]
[1759063500803,4.80769204,109560.0,109550.0,0.05094244]
[1759063501040,4.75070234,109560.0,109550.0,0.05094244]
[1759063501257,4.44482234,109560.0,109550.0,0.05094244]
[1759063501485,0.02392,109560.0,109550.0,0.05094244]
[1759063501912,0.36392,109560.0,109550.0,0.05094244]
[1759063502365,0.36392,109560.0,109550.0,0.04794244]
[1759063502582,0.36392,109560.0,109550.0,0.04494244]
[1759063502768,0.4293257,109560.0,109550.0,0.05594244]
[1759063503227,0.4293257,109560.0,109550.0,0.06394244]
[1759063503455,8.61187407,109560.0,109550.0,0.06394244]
[1759063503721,8.18254837,109560.0,109550.0,0.06394244]
[1759063503939,8.01014803,109560.0,109550.0,0.06394244]
[1759063504159,7.82759966,109560.0,109550.0,0.06394244]
[1759063504380,7.82759966,109560.0,109550.0,0.04494244]
[1759063504818,7.82759966,109560.0,109550.0,0.05294244]
[1759063505613,8.16759966,109560.0,109550.0,0.05294244]
[1759063505857,8.19188966,109560.0,109550.0,0.05294244]
[1759063506064,8.37443803,109560.0,109550.0,0.05894244]
[1759063506556,8.19188966,109560.0,109550.0,0.05894244]
[1759063508017,0.36429,109560.0,109550.0,0.05894244]
[1759063508444,0.02429,109560.0,109550.0,0.05894244]
[1759063508685,0.02429,109560.0,109550.0,0.07719894]
[1759063509743,0.36429,109560.0,109550.0,0.07719894]
[1759063509992,0.36429,109560.0,109550.0,0.05894244]
[1759063511251,0.02429,109560.0,109550.0,0.05894244]
[1759063511456,0.36429,109560.0,109550.0,0.07719894]
[1759063512509,0.36429,109560.0,109550.0,0.05894244]
[1759063512728,0.37861097,109560.0,109550.0,0.05894244]
[1759063513291,0.37861097,109560.0,109550.0,0.07719894]
[1759063513496,0.37861097,109560.0,109550.0,0.05894244]
[1759063517504,0.36429,109560.0,109550.0,0.05894244]
[1759063518782,8.36944,109560.0,109550.0,0.05391244]
[1759063519627,8.36629,109560.0,109550.0,0.05590244]
[1759063519844,8.36429,109560.0,109550.0,0.05912244]
[1759063520068,8.002,109560.0,109550.0,0.05912244]
[1759063520491,8.002,109560.0,109550.0,0.08377244]
[1759063520704,8.27401332,109560.0,109550.0,0.07856244]
[1759063521151,8.20210981,109560.0,109550.0,0.07856244]
[1759063522085,8.54210981,109560.0,109550.0,0.07856244]
[1759063522304,8.56584981,109560.0,109550.0,0.07856244]
[1759063523647,8.68830144,109560.0,109550.0,0.07856244]
[1759063523860,8.68506144,109560.0,109550.0,0.08061244]
[1759063524230,8.87084981,109560.0,109550.0,0.07856244]
[1759063524793,8.87068981,109560.0,109550.0,0.07856244]
[1759063527497,8.85636837,109560.0,109550.0,0.07856244]
[1759063528392,8.94507984,109560.0,109550.0,0.07856244]
[1759063528949,8.85636837,109560.0,109550.0,0.07856244]
[1759063531979,8.87069089,109560.0,109550.0,0.07856244]
[1759063535028,8.56585089,109560.0,109550.0,0.07856244]
[1759063535243,8.87085089,109560.0,109550.0,0.07856244]
[1759063537468,8.85652837,109560.0,109550.0,0.07856244]
[1759063540860,8.90414069,109560.0,109550.0,0.07856244]
[1759063541899,8.87085104,109560.0,109550.0,0.07856244]
[1759063543126,8.89832784,109560.0,109550.0,0.07856244]
[1759063544037,8.69205385,109560.0,109550.0,0.07856244]
[1759063544864,8.38705385,109560.0,109550.0,0.07856244]
[1759063545092,8.69121385,109560.0,109550.0,0.07856244]
[1759063545729,8.77992532,109560.0,109550.0,0.07856244]
[1759063546166,8.47576532,109560.0,109550.0,0.07856244]
[1759063546508,8.78016532,109560.0,109550.0,0.07856244]
[1759063547141,8.78016532,109560.0,109550.0,0.06423977]
[1759063547347,8.69145385,109560.0,109550.0,0.06423977]
[1759063547957,8.68817385,109560.0,109550.0,0.06928977]
[1759063548178,8.64437438,109560.0,109550.0,0.06928977]
[1759063548607,8.34212438,109560.0,109550.0,0.06628977]
[1759063548795,8.64624438,109560.0,109550.0,0.06628977]
[1759063549195,8.64620438,109560.0,109550.0,0.06628977]
[1759063549662,8.34212438,109560.0,109550.0,0.06628977]
[1759063549896,8.64632438,109560.0,109550.0,0.06628977]
[1759063550107,8.64624438,109560.0,109550.0,0.06628977]
[1759063550525,8.34212438,109560.0,109550.0,0.06628977]
[1759063550738,8.64620438,109560.0,109550.0,0.06952977]
[1759063551431,8.66052764,109560.0,109550.0,0.06952977]
[1759063551643,8.17178927,109560.0,109550.0,0.06952977]
[1759063551863,8.65821764,109560.0,109550.0,0.06952977]
[1759063552071,8.47566927,109560.0,109550.0,0.06952977]
[1759063552909,8.65821764,109560.0,109550.0,0.06952977]
[1759063553544,8.17178927,109560.0,109550.0,0.06952977]
[1759063553751,8.47542927,109560.0,109550.0,0.06952977]
[1759063554170,8.47534927,109560.0,109550.0,0.06952977]
[1759063555041,8.17178927,109560.0,109550.0,0.06952977]
[1759063555256,8.47518927,109560.0,109550.0,0.06952977]
[1759063555886,8.47510927,109560.0,109550.0,0.06952977]
[1759063556093,8.17178927,109560.0,109550.0,0.06952977]
[1759063556311,8.47510927,109560.0,109550.0,0.06952977]
[1759063557186,8.47506927,109560.0,109550.0,0.06952977]
[1759063557629,8.46074601,109560.0,109550.0,0.06952977]
[1759063560473,8.15746601,109560.0,109550.0,0.06952977]
[1759063560685,8.46054601,109560.0,109550.0,0.06952977]
[1759063561749,8.25425219,109560.0,109550.0,0.06952977]
[1759063561953,8.66682,109560.0,109550.0,0.06952977]
[1759063562115,8.68324245,109560.0,109550.0,0.06952977]
[1759063562335,8.38016245,109560.0,109550.0,0.06952977]
[1759063562540,8.68296245,109560.0,109550.0,0.06952977]
[1759063563940,8.68280245,109560.0,109550.0,0.06952977]
[1759063565977,8.68280245,109560.0,109550.0,0.06628977]
[1759063566406,8.86535082,109560.0,109550.0,0.06952977]
[1759063566617,8.86535082,109560.0,109550.0,0.06628977]
[1759063567205,8.86842082,109560.0,109550.0,0.06423977]
[1759063567408,8.85409837,109560.0,109550.0,0.06423977]
[1759063569194,8.55145837,109560.0,109550.0,0.06423977]
[1759063569379,8.85357837,109560.0,109550.0,0.06423977]
[1759063569588,8.36891,109560.0,109550.0,0.06423977]
[1759063569790,8.66796,109560.0,109550.0,0.06629977]
[1759063570654,8.66784,109560.0,109550.0,0.06629977]
[1759063570869,8.68216255,109560.0,109550.0,0.06629977]
[1759063571129,8.68204255,109560.0,109550.0,0.06629977]
[1759063571627,8.38016255,109560.0,109550.0,0.06629977]
[1759063571841,8.68200255,109560.0,109550.0,0.06950977]
[1759063572704,8.68200255,109560.0,109550.0,0.06629977]
[1759063573315,8.68192255,109560.0,109550.0,0.06629977]
[1759063574348,8.68192255,109560.0,109550.0,0.06950977]
[1759063574550,8.38016255,109560.0,109550.0,0.06950977]
[1759063574756,8.37806255,109560.0,109550.0,0.06950977]
[1759063574965,0.33950255,109560.0,109550.0,0.06950977]
[1759063575173,0.03806255,109560.0,109550.0,0.06950977]
[1759063577481,0.02374,109560.0,109550.0,0.06950977]
[1759063577906,8.02374,109560.0,109550.0,0.06950977]
[1759063578157,8.02586,109560.0,109550.0,0.06950977]
[1759063578347,8.02374,109560.0,109550.0,0.06950977]
[1759063580376,8.02374,109560.0,109550.0,0.06423977]
[1759063580377,8.20840837,109560.0,109550.0,0.06423977]
[1759063580558,8.65439221,109560.0,109550.0,0.06423977]
[1759063581633,8.68186804,109560.0,109550.0,0.06423977]
[1759063584313,8.89451657,109560.0,109550.0,0.06423977]
[1759063584526,8.59315657,109560.0,109550.0,0.06423977]
[1759063584741,8.89443657,109560.0,109550.0,0.06423977]
[1759063584956,8.59315657,109560.0,109550.0,0.06423977]
[1759063585211,8.89447657,109560.0,109550.0,0.06423977]
[1759063585644,8.89443657,109560.0,109550.0,0.06423977]
[1759063585786,8.59315657,109560.0,109550.0,0.06423977]
[1759063586204,8.89431657,109560.0,109550.0,0.06423977]
[1759063587570,8.8799942,109560.0,109550.0,0.06423977]
[1759063588040,8.94554983,109560.0,109550.0,0.06423977]
[1759063588252,8.97570173,109560.0,109550.0,0.06019338]
[1759063588774,8.97570173,109560.0,109550.0,0.05219338]
[1759063588980,8.97570173,109560.0,109550.0,0.04619338]
[1759063589223,8.97570173,109560.0,109550.0,0.04919338]
[1759063589424,8.97570173,109560.0,109550.0,0.05419338]
[1759063589826,8.97570173,109560.0,109550.0,0.05119338]
[1759063590228,8.76728686,109560.0,109550.0,0.05119338]
[1759063590445,8.79657123,109560.0,109550.0,0.05119338]
[1759063590672,8.81089538,109560.0,109550.0,0.05119338]
[1759063591843,8.81089538,109560.0,109550.0,0.05419338]
[1759063592267,8.81089538,109560.0,109550.0,0.04619338]
[1759063592474,8.81089538,109560.0,109550.0,0.04919338]
[1759063592684,8.89960685,109560.0,109550.0,0.04919338]
[1759063593985,8.89948685,109560.0,109550.0,0.04919338]
[1759063594194,8.50360685,109560.0,109550.0,0.04919338]
[1759063594332,8.89944685,109560.0,109550.0,0.04919338]
[1759063594528,8.68542348,109560.0,109550.0,0.04919338]
[1759063594737,8.78054348,109560.0,109550.0,0.05323977]
[1759063595602,8.38474348,109560.0,109550.0,0.05323977]
[1759063595802,8.68538348,109560.0,109550.0,0.05323977]
[1759063596398,8.15863728,109560.0,109550.0,0.05323977]
[1759063596807,8.45935728,109560.0,109550.0,0.05323977]
[1759063596983,8.15863728,109560.0,109550.0,0.05323977]
[1759063597191,8.45931728,109560.0,109550.0,0.05323977]
[1759063597750,8.44499313,109560.0,109550.0,0.05323977]
[1759063598686,8.09968313,109560.0,109550.0,0.05839977]
[1759063598892,7.89782475,109560.0,109550.0,0.05839977]
[1759063599096,8.23782475,109560.0,109550.0,0.05839977]
[1759063599606,8.02576512,109560.0,109550.0,0.05839977]
[1759063599793,7.72540512,109560.0,109550.0,0.05839977]
[1759063600041,8.02572512,109560.0,109550.0,0.05839977]
[1759063601119,8.0400484,109560.0,109550.0,0.05839977]
[1759063601347,8.0421084,109560.0,109550.0,0.05839977]
[1759063602783,8.0421084,109560.0,109550.0,0.05534977]
[1759063603001,7.7397284,109560.0,109550.0,0.05839977]
[1759063603619,7.55718003,109560.0,109550.0,0.05839977]
[1759063603839,7.8297842,109560.0,109550.0,0.05839977]
[1759063605013,7.8297442,109560.0,109550.0,0.05839977]
[1759063605255,8.0395716,109560.0,109550.0,0.05839977]
[1759063605730,8.0416316,109560.0,109550.0,0.05839977]
[1759063605948,8.01435257,109560.0,109550.0,0.05839977]
[1759063607495,8.00002929,109560.0,109550.0,0.05839977]
[1759063611626,8.00314929,109560.0,109550.0,0.05323977]
[1759063612064,7.85055533,109560.0,109550.0,0.05323977]
[1759063612481,7.84743533,109560.0,109550.0,0.05525977]
[1759063617532,7.83623253,109560.0,109550.0,0.05323977]
[1759063619178,7.924944,109560.0,109550.0,0.05323977]
[1759063620929,7.96674152,109560.0,109550.0,0.05323977]
[1759063623771,7.57799005,109560.0,109550.0,0.05323977]
[1759063623975,7.87667005,109560.0,109550.0,0.05323977]
[1759063624194,7.87659005,109560.0,109550.0,0.05323977]
[1759063624419,7.57799005,109560.0,109550.0,0.05323977]
[1759063624644,7.87655005,109560.0,109550.0,0.05323977]
[1759063625504,7.57799005,109560.0,109550.0,0.05323977]
[1759063625935,7.9319224,109560.0,109550.0,0.05323977]
[1759063626152,7.9620743,109560.0,109550.0,0.04003072]
[1759063626373,7.98324969,109560.0,109550.0,0.04003072]
[1759063626595,7.96892667,109560.0,109550.0,0.04003072]
[1759063627927,7.67044667,109560.0,109550.0,0.04003072]
[1759063628155,8.04279128,109560.0,109550.0,0.04003072]
[1759063628570,7.64927128,109560.0,109550.0,0.04003072]
[1759063629096,8.04267128,109560.0,109550.0,0.04003072]
[1759063629651,7.64927128,109560.0,109550.0,0.04003072]
[1759063629933,8.05695601,109560.0,109550.0,0.04003072]
[1759063630422,7.66359601,109560.0,109550.0,0.04003072]
[1759063630649,8.05691601,109560.0,109550.0,0.04003072]
[1759063630854,8.04259128,109560.0,109550.0,0.04003072]
[1759063633416,8.04243128,109560.0,109550.0,0.04003072]
[1759063633948,7.66359594,109560.0,109550.0,0.04003072]
[1759063634156,7.96155594,109560.0,109550.0,0.04003072]
[1759063634365,8.05671594,109560.0,109550.0,0.04003072]
[1759063634789,7.66359594,109560.0,109550.0,0.04003072]
[1759063634994,8.05675594,109560.0,109550.0,0.04003072]
[1759063635386,7.66359594,109560.0,109550.0,0.04003072]
[1759063635596,8.05667594,109560.0,109550.0,0.04003072]
[1759063636459,7.96147594,109560.0,109550.0,0.04003072]
[1759063636682,8.05663594,109560.0,109550.0,0.04003072]
[1759063637557,8.04231128,109560.0,109550.0,0.04003072]
[1759063637773,8.04211128,109560.0,109550.0,0.04003072]
[1759063639034,7.95650703,109560.0,109550.0,0.04003072]
[1759063640632,7.97083155,109560.0,109550.0,0.04003072]
[1759063642643,7.57799155,109560.0,109550.0,0.04003072]
[1759063642853,7.23281155,109560.0,109550.0,0.04527072]
[1759063643056,7.62541155,109560.0,109550.0,0.04527072]
[1759063643270,7.65529535,109560.0,109550.0,0.04206072]
[1759063643480,7.99529535,109560.0,109550.0,0.04206072]
[1759063644150,7.99847535,109560.0,109550.0,0.04003072]
[1759063647661,7.98415083,109560.0,109550.0,0.04003072]
[1759063650536,7.77957804,109560.0,109550.0,0.04003072]
[1759063650750,7.79390176,109560.0,109550.0,0.04003072]
[1759063652046,7.66491796,109560.0,109550.0,0.04931711]
[1759063652274,7.66703796,109560.0,109550.0,0.04931711]
[1759063654361,7.67021796,109560.0,109550.0,0.04407711]
[1759063656122,7.66703796,109560.0,109550.0,0.04610711]
[1759063656336,7.66703796,109560.0,109550.0,0.04931711]
[1759063656545,7.76183796,109560.0,109550.0,0.04610711]
[1759063656765,7.85054943,109560.0,109550.0,0.04610711]
[1759063657632,7.45906943,109560.0,109550.0,0.04610711]
[1759063657850,7.37035796,109560.0,109550.0,0.04931711]
[1759063658063,7.65027424,109560.0,109550.0,0.04931711]
[1759063658279,7.35391424,109560.0,109550.0,0.04931711]
[1759063658500,7.65023424,109560.0,109550.0,0.04931711]
[1759063658749,7.65235424,109560.0,109550.0,0.04931711]
[1759063660349,7.65227424,109560.0,109550.0,0.04931711]
[1759063661673,7.67646306,109560.0,109550.0,0.04931711]
[1759063662101,7.65227424,109560.0,109550.0,0.04931711]
[1759063663612,7.35391424,109560.0,109550.0,0.04931711]
[1759063663967,7.64967424,109560.0,109550.0,0.04931711]
[1759063664167,7.35391424,109560.0,109550.0,0.04931711]
[1759063664612,7.64963424,109560.0,109550.0,0.04931711]
[1759063665280,7.35391424,109560.0,109550.0,0.04931711]
[1759063665442,7.64963424,109560.0,109550.0,0.04931711]
[1759063666543,7.35391424,109560.0,109550.0,0.04931711]
[1759063666960,7.64943424,109560.0,109550.0,0.04931711]
[1759063667407,7.73814571,109560.0,109550.0,0.04931711]
[1759063668256,7.64943424,109560.0,109550.0,0.04931711]
[1759063669694,7.65155424,109560.0,109550.0,0.04931711]
[1759063670782,7.66587727,109560.0,109550.0,0.04931711]
[1759063671713,7.66587727,109560.0,109550.0,0.04610711]
[1759063672305,7.66587727,109560.0,109550.0,0.04924711]
[1759063672498,7.75458874,109560.0,109550.0,0.04924711]
[1759063676818,7.75458874,109560.0,109550.0,0.04610711]
[1759063677517,7.74026571,109560.0,109550.0,0.04610711]
[1759063678671,7.74332571,109560.0,109550.0,0.04407711]
[1759063679142,7.77347761,109560.0,109550.0,0.04003072]
[1759063680543,7.78780159,109560.0,109550.0,0.04003072]
[1759063680772,7.88296159,109560.0,109550.0,0.04003072]
[1759063685863,7.90413698,109560.0,109550.0,0.02570682]
[1759063686067,7.90413698,109560.0,109550.0,0.01696682]
[1759063687104,7.69352349,109560.0,109550.0,0.01696682]
[1759063687911,7.69352349,109560.0,109550.0,0.01396682]
[1759063688533,7.69352349,109560.0,109550.0,0.00523755]
[1759063689101,7.31194951,109560.0,109550.0,0.00523755]
[1759063689291,7.70254951,109560.0,109550.0,0.00523755]
[1759063689851,7.70554951,109560.0,109550.0,0.00523755]
[1759063690047,0.52256503,109550.0,109540.0,0.0004]
[1759063690263,7.49995438,109550.0,109540.0,0.00052753]
[1759063690482,7.52933438,109550.0,109540.0,0.00052753]
[1759063690696,7.53692077,109550.0,109540.0,0.00052753]
[1759063691589,7.53692077,109550.0,109540.0,0.00252753]
[1759063692319,7.25584718,109550.0,109540.0,0.02519753]
[1759063692525,7.64628718,109550.0,109540.0,0.02519753]
[1759063692776,0.5225817,109540.0,109530.0,0.0054]
[1759063693107,0.5225817,109540.0,109500.0,0.71451353]
[1759063693108,0.52263172,109510.0,109500.0,0.71451353]
[1759063693313,7.4111096,109510.0,109500.0,0.71659817]
[1759063693520,7.1402196,109510.0,109500.0,0.71659817]
[1759063693721,7.4354196,109510.0,109500.0,0.71659817]
[1759063693920,7.4497488,109510.0,109500.0,0.71659817]
[1759063694152,7.24326025,109510.0,109500.0,0.71659817]
[1759063694363,7.5659486,109510.0,109500.0,0.71659817]
[1759063694581,7.2707486,109510.0,109500.0,0.71659817]
[1759063694794,7.5663486,109510.0,109500.0,0.71659817]
[1759063695042,7.5663486,109510.0,109500.0,0.72552817]
[1759063695250,7.2707486,109510.0,109500.0,0.72552817]
[1759063695669,7.47759715,109510.0,109500.0,0.72552817]
[1759063695984,7.18203715,109510.0,109500.0,0.72552817]
[1759063696189,6.99940543,109510.0,109500.0,0.72552817]
[1759063696419,7.47775715,109510.0,109500.0,0.73152817]
[1759063697288,7.18203715,109510.0,109500.0,0.73152817]
[1759063697518,7.21514847,109510.0,109500.0,0.73152817]
[1759063697715,7.51074847,109510.0,109500.0,0.73152817]
[1759063698550,7.52052742,109510.0,109500.0,0.73152817]
[1759063701486,7.52024742,109510.0,109500.0,0.73152817]
[1759063702081,7.53457644,109510.0,109500.0,0.73152817]
[1759063702315,7.19181592,109510.0,109500.0,0.73152817]
[1759063702699,7.0091842,109510.0,109500.0,0.73152817]
[1759063703104,7.3043442,109510.0,109500.0,0.73152817]
[1759063703320,7.0091842,109510.0,109500.0,0.73152817]
[1759063703524,7.3043442,109510.0,109500.0,0.73152817]
[1759063703726,7.48697592,109510.0,109500.0,0.73152817]
[1759063704664,7.14697592,109510.0,109500.0,0.73152817]
[1759063705138,7.13719697,109510.0,109500.0,0.73152817]
[1759063705479,6.95456525,109510.0,109500.0,0.73152817]
[1759063705660,7.13719697,109510.0,109500.0,0.73152817]
[1759063705866,6.95456525,109510.0,109500.0,0.73152817]
[1759063706665,7.29456525,109510.0,109500.0,0.73152817]
[1759063707294,7.47719697,109510.0,109500.0,0.73152817]
[1759063707444,7.46286795,109510.0,109500.0,0.73152817]
[1759063707905,7.27621685,109510.0,109500.0,0.73152817]
[1759063708246,8.06159198,109510.0,109500.0,0.73152817]
[1759063708456,0.06159198,109510.0,109500.0,0.73152817]
[1759063708668,0.06159198,109510.0,109500.0,1.02640817]
[1759063708847,0.40159198,109510.0,109500.0,1.02640817]
[1759063709860,0.40374198,109510.0,109500.0,1.02347817]
[1759063710295,0.40374198,109510.0,109500.0,0.72859817]
[1759063710296,0.42186282,109510.0,109500.0,0.72859817]
[1759063710494,0.42186282,109510.0,109500.0,1.02335817]
[1759063710691,8.43404061,109510.0,109500.0,1.02636817]
[1759063711811,8.41591977,109510.0,109500.0,1.02636817]
[1759063714209,0.41591977,109510.0,109500.0,1.02636817]
[1759063714410,0.41591977,109510.0,109500.0,1.02628817]
[1759063716074,0.41591977,109510.0,109500.0,0.72659817]
[1759063716075,8.60389149,109510.0,109500.0,0.72659817]
[1759063716278,8.69260296,109510.0,109500.0,0.72659817]
[1759063716903,8.98740296,109510.0,109500.0,0.72659817]
[1759063717058,8.97307517,109510.0,109500.0,0.72659817]
[1759063720381,8.98740383,109510.0,109500.0,0.72659817]
[1759063721005,8.71606064,109510.0,109500.0,0.72659817]
[1759063721420,8.89869236,109510.0,109500.0,0.72659817]
[1759063721827,8.71606064,109510.0,109500.0,0.72659817]
[1759063722235,8.42126064,109510.0,109500.0,0.72659817]
[1759063722429,8.71594064,109510.0,109500.0,0.72659817]
[1759063723298,8.42126064,109510.0,109500.0,0.72659817]
[1759063723517,8.71279064,109510.0,109500.0,0.72873817]
[1759063726110,8.89861236,109510.0,109500.0,0.72873817]
[1759063726851,8.71060064,109510.0,109500.0,0.73174817]
[1759063727548,8.71060064,109510.0,109500.0,0.72873817]
[1759063727549,8.69842198,109510.0,109500.0,0.72873817]
[1759063728043,8.8842437,109510.0,109500.0,0.72873817]
[1759063728287,8.70161198,109510.0,109500.0,0.72873817]
[1759063729774,8.70161198,109510.0,109500.0,0.72659817]
[1759063730368,8.70161198,109510.0,109500.0,0.72873817]
[1759063730776,8.71594061,109510.0,109500.0,0.72659817]
[1759063732573,8.71594061,109510.0,109500.0,0.72872817]
[1759063732913,8.42126061,109510.0,109500.0,0.72872817]
[1759063733152,8.41592061,109510.0,109500.0,0.73177817]
[1759063733337,8.71268061,109510.0,109500.0,0.72872817]
[1759063734129,8.71583061,109510.0,109500.0,0.72872817]
[1759063736105,8.51199601,109510.0,109500.0,0.72872817]
[1759063736314,8.53948396,109510.0,109500.0,0.72872817]
[1759063736539,8.24480396,109510.0,109500.0,0.75319817]
[1759063736738,8.53948396,109510.0,109500.0,0.75319817]
[1759063736952,8.53948396,109510.0,109500.0,0.75106817]
[1759063737150,8.52515533,109510.0,109500.0,0.75106817]
[1759063738667,8.70778705,109510.0,109500.0,0.75106817]
[1759063738897,8.54891533,109510.0,109500.0,0.75106817]
[1759063739532,8.54891533,109510.0,109500.0,0.75319817]
[1759063740125,8.56324396,109510.0,109500.0,0.75319817]
[1759063740529,8.57336648,109510.0,109500.0,0.75106817]
[1759063740964,8.7559982,109510.0,109500.0,0.75106817]
[1759063742136,8.57336648,109510.0,109500.0,0.75106817]
[1759063743447,8.7559982,109510.0,109500.0,0.75106817]
[1759063745222,8.84470967,109510.0,109500.0,0.75106817]
[1759063746481,8.83038104,109510.0,109500.0,0.75106817]
[1759063747369,8.74162957,109510.0,109500.0,0.75106817]
[1759063749845,0.07569921,109510.0,109500.0,0.75624817]
[1759063750057,0.57569921,109510.0,109500.0,0.75624817]
[1759063750264,8.07569921,109510.0,109500.0,0.75624817]
[1759063750487,0.07569921,109510.0,109500.0,0.75624817]
[1759063750691,0.41569921,109510.0,109500.0,0.75624817]
[1759063754805,0.06557669,109510.0,109500.0,0.75624817]
[1759063755011,0.06557669,109510.0,109500.0,1.16424847]
[1759063755012,0.02376,109510.0,109500.0,1.16424847]
[1759063755236,0.02376,109510.0,109500.0,1.36384847]
[1759063755434,0.02376,109510.0,109500.0,1.36388847]
[1759063755574,0.02376,109510.0,109500.0,1.45908847]
[1759063755778,0.02376,109510.0,109500.0,1.45308847]
[1759063755982,0.02376,109510.0,109500.0,1.44708847]
[1759063756195,0.02376,109510.0,109500.0,1.45908847]
[1759063756978,0.02376,109510.0,109500.0,1.06904847]
[1759063757434,0.02376,109510.0,109500.0,1.46928847]
[1759063757639,0.02376,109510.0,109500.0,1.37412847]
[1759063757842,0.02376,109510.0,109500.0,1.46928847]
[1759063759161,0.02376,109510.0,109500.0,1.07904847]
[1759063759360,0.02376,109510.0,109500.0,1.46928847]
[1759063761038,0.02376,109510.0,109500.0,0.76624817]
[1759063761455,0.02376,109510.0,109500.0,1.15648817]
[1759063762711,0.02376,109510.0,109500.0,1.15668817]
[1759063765937,0.02376,109510.0,109500.0,0.76624817]
[1759063766127,8.86872,109510.0,109500.0,1.05606817]
[1759063766350,0.36872,109510.0,109500.0,1.05606817]
[1759063768116,0.39620266,109510.0,109500.0,1.05606817]
[1759063769709,0.41052999,109510.0,109500.0,1.05590817]
[1759063770723,8.65425812,109510.0,109500.0,0.76106817]
[1759063771042,8.65425812,109510.0,109500.0,1.05590817]
[1759063771265,8.59316171,109510.0,109500.0,1.05590817]
[1759063771620,8.59316171,109510.0,109500.0,1.04390817]
[1759063771825,8.59316171,109510.0,109500.0,1.03390817]
[1759063772032,8.59316171,109510.0,109500.0,1.03990817]
[1759063772232,8.59316171,109510.0,109500.0,1.04590817]
[1759063772833,8.59316171,109510.0,109500.0,1.04638817]
[1759063773241,8.41817974,109510.0,109500.0,1.04638817]
[1759063773449,8.22645171,109510.0,109500.0,1.04638817]
[1759063774390,8.22645171,109510.0,109500.0,0.75106817]
[1759063774551,8.22645171,109510.0,109500.0,1.04634817]
[1759063775158,8.04628999,109510.0,109500.0,1.04634817]
[1759063776317,8.04381999,109510.0,109500.0,1.04634817]
[1759063777581,8.02949266,109510.0,109500.0,1.04634817]
[1759063780150,8.36949266,109510.0,109500.0,1.04634817]
[1759063780710,8.38382057,109510.0,109500.0,1.04839817]
[1759063782064,8.38382057,109510.0,109500.0,1.04634817]
[1759063784203,8.38382057,109510.0,109500.0,1.04590817]
[1759063788416,8.36949266,109510.0,109500.0,1.04590817]
[1759063790419,8.19122028,109510.0,109500.0,1.04590817]
[1759063790625,8.36949556,109510.0,109500.0,1.04590817]
[1759063790782,8.36949556,109510.0,109500.0,1.04788817]
[1759063790985,8.36949556,109510.0,109500.0,1.05104817]
[1759063791645,8.38382352,109510.0,109500.0,1.04788817]
[1759063791850,8.38382352,109510.0,109500.0,0.75304817]
[1759063792048,8.38382352,109510.0,109500.0,1.04768817]
[1759063792707,8.38379352,109510.0,109500.0,1.05084817]
[1759063792909,8.38379352,109510.0,109500.0,1.04768817]
[1759063794355,0.04181352,109510.0,109500.0,0.75620817]
[1759063794559,0.01432796,109510.0,109500.0,0.75620817]
[1759063794767,0.5,109510.0,109500.0,0.75620817]
[1759063794970,8.0,109510.0,109500.0,0.75620817]
[1759063795147,8.34,109510.0,109500.0,0.75304817]
[1759063795346,0.34,109510.0,109500.0,1.04816817]
[1759063795774,0.34,109510.0,109500.0,0.75304817]
[1759063795917,0.34,109510.0,109500.0,1.04618817]
[1759063796307,0.34,109510.0,109500.0,1.04816817]
[1759063796655,0.34,109510.0,109500.0,1.05132817]
[1759063799450,0.34,109510.0,109500.0,1.05128817]
[1759063800295,8.34968863,109510.0,109500.0,0.75106817]
[1759063800497,8.34,109510.0,109500.0,1.04598817]
[1759063800915,8.34,109510.0,109500.0,0.75106817]